bitfinex-derivatives/quotes_BTCF0:USTF0_20251009
["timestamp","ask_amount","ask_price","bid_price","bid_amount"]
[1760019757370,0.05623116,121930.0,121920.0,0.10147602]
[1760019757567,0.05623116,121930.0,121920.0,0.06706602]
[1760019757772,0.02153116,121930.0,121920.0,0.0819881]
[1760019757972,0.02153116,121930.0,121920.0,0.8537481]
[1760019758274,0.02153116,121930.0,121920.0,0.8537081]
[1760019758774,0.38233116,121930.0,121910.0,0.3608]
[1760019759069,0.02148,121910.0,121900.0,2.40773532]
[1760019759272,0.02148,121910.0,121900.0,2.81837532]
[1760019759576,0.72253034,121910.0,121900.0,0.77173532]
[1760019759872,0.80452514,121910.0,121900.0,9.532e-05]
[1760019760171,0.83922514,121910.0,121900.0,0.77165532]
[1760019760371,1.2392763,121910.0,121900.0,0.77165532]
[1760019760868,1.2392763,121910.0,121900.0,9.532e-05]
[1760019761568,1.2392763,121910.0,121900.0,0.66437532]
[1760019761873,1.2392763,121910.0,121890.0,0.00784202]
[1760019762068,0.75692034,121900.0,121890.0,0.00784202]
[1760019762266,0.75692034,121900.0,121890.0,0.07195972]
[1760019762466,0.75692034,121900.0,121890.0,0.77948202]
[1760019762670,0.41667,121900.0,121890.0,0.77948202]
[1760019762863,0.83892184,121900.0,121890.0,0.00784202]
[1760019763062,1.23892184,121900.0,121890.0,0.00784202]
[1760019763478,1.23892184,121900.0,121890.0,0.78008202]
[1760019763970,1.23892184,121900.0,121890.0,0.78012202]
[1760019764178,0.05587,121870.0,121860.0,0.36902919]
[1760019764365,0.05595758,121870.0,121860.0,0.89677769]
[1760019764570,0.05595758,121870.0,121860.0,0.48557769]
[1760019764864,0.05595758,121870.0,121860.0,0.89697769]
[1760019765069,8.758e-05,121870.0,121860.0,1.65777769]
[1760019765264,8.758e-05,121870.0,121860.0,0.52477769]
[1760019765265,0.05395758,121870.0,121860.0,0.52477769]
[1760019765473,0.05395758,121870.0,121860.0,1.6494685]
[1760019765667,8.758e-05,121870.0,121860.0,0.8773485]
[1760019765868,8.758e-05,121870.0,121860.0,1.99816884]
[1760019766073,0.41593,121900.0,121890.0,0.1157583]
[1760019766272,0.05387,121890.0,121880.0,0.1157642]
[1760019766467,0.05387,121890.0,121880.0,0.8879642]
[1760019766675,0.05387,121890.0,121880.0,0.1157642]
[1760019766974,0.1359372,121890.0,121880.0,0.7724]
[1760019767171,0.1359372,121890.0,121880.0,0.115765]
[1760019767371,0.1359372,121890.0,121870.0,0.4428176]
[1760019767578,0.135885,121880.0,121870.0,0.03375]
[1760019767874,0.135885,121880.0,121870.0,0.80591]
[1760019768070,0.135885,121880.0,121870.0,0.03375]
[1760019768276,0.135885,121880.0,121870.0,0.80583]
[1760019768470,0.05387,121880.0,121870.0,0.4765718]
[1760019768668,5.89e-05,121890.0,121880.0,0.115765]
[1760019768872,5.89e-05,121890.0,121880.0,0.476565]
[1760019769070,5.89e-05,121890.0,121880.0,1.248565]
[1760019769274,5.89e-05,121890.0,121880.0,2.04048898]
[1760019769972,5.89e-05,121890.0,121880.0,0.886825]
[1760019770168,5.89e-05,121890.0,121880.0,0.79455]
[1760019770373,5.89e-05,121890.0,121880.0,3.696005]
[1760019770575,0.0196589,121890.0,121880.0,3.696005]
[1760019770771,0.0196589,121890.0,121830.0,8.032e-05]
[1760019770772,0.0196,121850.0,121830.0,8.032e-05]
[1760019771072,5.89e-05,121840.0,121830.0,0.085524]
[1760019771272,0.0821008,121840.0,121830.0,0.01997032]
[1760019771479,0.4429008,121840.0,121830.0,0.01997032]
[1760019771870,1.24424478,121840.0,121830.0,8.032e-05]
[1760019772274,1.24424478,121840.0,121830.0,0.46296032]
[1760019772670,1.24424478,121840.0,121830.0,0.43451672]
[1760019773575,1.24424478,121840.0,121830.0,0.01989]
[1760019773576,0.4429039,121840.0,121830.0,0.01989]
[1760019773776,5.89e-05,121840.0,121830.0,2.99876372]
[1760019774082,0.3608,121870.0,121860.0,0.01989]
[1760019774267,0.74254398,121870.0,121850.0,0.01989]
[1760019774474,0.3608,121860.0,121850.0,0.01989]
[1760019774674,0.4428285,121860.0,121850.0,0.80369]
[1760019774879,0.0820352,121850.0,121840.0,0.1019319]
[1760019775077,0.3608694,121850.0,121840.0,0.8862919]
[1760019775379,6.94e-05,121850.0,121840.0,0.8861719]
[1760019775571,6.94e-05,121850.0,121840.0,1.2469719]
[1760019775778,0.001,121870.0,121860.0,0.1019185]
[1760019775975,0.001,121870.0,121860.0,0.8859585]
[1760019776171,0.001,121870.0,121860.0,0.88366248]
[1760019776481,0.3608,121890.0,121880.0,0.01989]
[1760019776777,0.3608,121900.0,121880.0,0.886025]
[1760019776980,0.3608,121900.0,121890.0,0.01989]
[1760019777178,0.3608,121900.0,121890.0,0.06462277]
[1760019777376,0.3608,121900.0,121890.0,0.62812]
[1760019777571,0.3608,121900.0,121890.0,0.64801]
[1760019777778,0.3608,121900.0,121890.0,0.01989]
[1760019777977,0.3608,121900.0,121890.0,0.80353]
[1760019778581,0.3608,121900.0,121890.0,0.80325]
[1760019778878,0.3628,121900.0,121890.0,1.67539238]
[1760019779081,0.3638,121900.0,121890.0,1.67539238]
[1760019779585,0.3638,121900.0,121890.0,0.4281601]
[1760019779778,0.3638,121900.0,121890.0,0.80333]
[1760019780081,0.74554398,121900.0,121890.0,0.06682685]
[1760019780285,1.24714558,121900.0,121870.0,2.06789]
[1760019780580,0.442815,121880.0,121870.0,2.06789]
[1760019780780,0.442815,121880.0,121870.0,0.01989]
[1760019780978,0.442815,121880.0,121870.0,0.80297]
[1760019781284,0.442815,121880.0,121870.0,2.85085]
[1760019781582,0.82754558,121900.0,121870.0,2.85085]
[1760019781583,0.3608,121890.0,121880.0,0.01989]
[1760019781782,0.3608,121890.0,121880.0,0.80269]
[1760019781783,0.4428108,121890.0,121880.0,0.80269]
[1760019782279,0.4428108,121890.0,121870.0,2.06785]
[1760019782280,0.082015,121880.0,121870.0,0.08488414]
[1760019782484,0.443815,121880.0,121870.0,0.08488414]
[1760019782882,0.443815,121880.0,121870.0,0.82992414]
[1760019783187,0.442815,121880.0,121870.0,0.86752414]
[1760019783480,0.0820352,121850.0,121830.0,0.01989]
[1760019783679,0.3608,121850.0,121830.0,0.01989]
[1760019784081,0.74254398,121850.0,121830.0,0.01989]
[1760019784378,0.4428352,121850.0,121840.0,0.78272]
[1760019784681,0.3608,121850.0,121840.0,0.54830549]
[1760019784879,0.3608,121860.0,121850.0,0.01989]
[1760019785078,0.4428217,121870.0,121860.0,0.01989]
[1760019785286,0.4428217,121870.0,121860.0,0.80253]
[1760019786182,0.4428217,121870.0,121840.0,0.44531961]
[1760019786183,0.0820352,121850.0,121840.0,0.44531961]
[1760019786384,0.0820352,121850.0,121840.0,0.94876151]
[1760019786585,0.0820352,121850.0,121840.0,0.86671961]
[1760019787183,0.0820352,121850.0,121840.0,0.08451961]
[1760019787383,0.4428352,121850.0,121840.0,0.86711961]
[1760019787977,0.0820352,121850.0,121840.0,0.94896151]
[1760019788178,0.0820352,121850.0,121840.0,0.54930549]
[1760019788383,0.442815,121880.0,121870.0,0.01989]
[1760019788686,0.0820284,121860.0,121850.0,0.01989]
[1760019788986,0.0820352,121850.0,121840.0,0.16756111]
[1760019789288,0.0820352,121850.0,121840.0,0.86843961]
[1760019789584,0.0820352,121850.0,121840.0,0.86917961]
[1760019789585,0.4428352,121850.0,121840.0,0.86917961]
[1760019789784,0.4428352,121850.0,121830.0,0.01989]
[1760019790086,0.4428352,121850.0,121840.0,0.78296]
[1760019790285,1.24478918,121850.0,121820.0,0.01989]
[1760019790485,0.3608,121830.0,121820.0,0.01989]
[1760019790986,0.7216,121830.0,121820.0,0.01989]
[1760019791186,0.7216,121830.0,121820.0,0.80313]
[1760019791484,0.3608,121840.0,121820.0,0.48368938]
[1760019791691,0.3608,121840.0,121830.0,0.02155]
[1760019791894,0.3608,121840.0,121830.0,0.78328]
[1760019792685,0.3608,121840.0,121830.0,0.02155]
[1760019792885,0.3608,121840.0,121830.0,0.80523]
[1760019793290,0.3608,121840.0,121830.0,0.80607]
[1760019793991,0.3608,121840.0,121830.0,0.80599]
[1760019794491,0.4428352,121850.0,121840.0,0.1035919]
[1760019795088,0.4428352,121850.0,121840.0,0.8865119]
[1760019795285,0.4428352,121850.0,121840.0,0.9195719]
[1760019795286,0.3608,121850.0,121840.0,0.9195719]
[1760019795489,0.4428352,121850.0,121840.0,0.05465]
[1760019795691,0.4428352,121850.0,121840.0,0.83881]
[1760019795891,0.3608,121850.0,121840.0,0.9208519]
[1760019796099,0.4428284,121860.0,121850.0,0.05465]
[1760019796390,0.4428284,121860.0,121850.0,0.83753]
[1760019796794,0.4428284,121860.0,121850.0,0.05465]
[1760019796987,0.4784984,121860.0,121850.0,0.83733]
[1760019797298,0.4784984,121860.0,121850.0,0.83833]
[1760019797689,0.86024238,121860.0,121850.0,0.0341]
[1760019797993,0.88045238,121860.0,121850.0,0.001]
[1760019798189,0.88045238,121860.0,121850.0,0.35068]
[1760019798390,0.86024238,121860.0,121850.0,0.35068]
[1760019798590,0.4784984,121860.0,121850.0,0.38378]
[1760019798897,0.4784984,121860.0,121850.0,0.83857]
[1760019799390,0.4784984,121860.0,121850.0,0.05565]
[1760019799587,0.4428284,121860.0,121850.0,1.30246918]
[1760019799792,0.4428284,121860.0,121850.0,1.3207252]
[1760019800301,0.3608,121870.0,121860.0,0.1366784]
[1760019800496,0.86023678,121870.0,121860.0,0.0331]
[1760019800688,0.86023678,121870.0,121860.0,0.81614]
[1760019800888,0.4784928,121870.0,121860.0,0.81614]
[1760019801094,0.86023678,121870.0,121860.0,0.83769]
[1760019801490,0.4438228,121870.0,121860.0,0.05465]
[1760019801900,0.4438228,121870.0,121860.0,0.83757]
[1760019802095,0.4438228,121870.0,121860.0,0.90325845]
[1760019802405,0.4794928,121870.0,121860.0,0.90325845]
[1760019802695,1.28144678,121870.0,121850.0,0.001]
[1760019802898,0.79842398,121860.0,121850.0,0.001]
[1760019803099,0.79842398,121860.0,121850.0,0.78404]
[1760019803504,0.79842398,121860.0,121850.0,0.001]
[1760019803806,0.03567,121830.0,121820.0,0.06195]
[1760019803991,0.75727,121830.0,121820.0,0.06195]
[1760019804193,0.75727,121830.0,121820.0,0.84559]
[1760019804394,1.15922398,121830.0,121820.0,0.0073]
[1760019804897,1.15922398,121830.0,121820.0,0.79142]
[1760019805399,1.15922398,121830.0,121810.0,0.00784202]
[1760019805400,1.64127258,121830.0,121810.0,0.00784202]
[1760019805702,0.1379623,121780.0,121770.0,0.00010398]
[1760019805899,0.8595623,121780.0,121770.0,0.35510398]
[1760019806099,0.8393523,121780.0,121770.0,0.05475398]
[1760019806404,0.3608,121790.0,121780.0,0.05465]
[1760019806602,0.3608,121790.0,121780.0,1.30431628]
[1760019806793,0.4428722,121800.0,121790.0,0.02155]
[1760019806994,0.4428722,121800.0,121790.0,0.84049]
[1760019807195,0.02021,121790.0,121780.0,0.0233553]
[1760019807394,0.02021,121790.0,121770.0,8e-08]
[1760019807395,1.52355398,121790.0,121770.0,8e-08]
[1760019807594,0.3608,121780.0,121770.0,8e-08]
[1760019807800,0.3608,121780.0,121770.0,0.02155008]
[1760019808306,0.7796936,121780.0,121770.0,8e-08]
[1760019808499,1.16143758,121780.0,121770.0,8e-08]
[1760019809402,1.95171758,121780.0,121770.0,8e-08]
[1760019809604,2.01853244,121780.0,121770.0,8e-08]
[1760019809796,0.0820974,121760.0,121730.0,0.00784202]
[1760019809997,0.0820974,121760.0,121710.0,0.02155]
[1760019809998,0.0821228,121720.0,121710.0,0.14190293]
[1760019810193,0.8037228,121720.0,121710.0,0.93206293]
[1760019810398,0.4429228,121720.0,121710.0,0.16345293]
[1760019810602,0.4429228,121720.0,121710.0,0.94519691]
[1760019810798,0.3608,121730.0,121720.0,0.02155]
[1760019810999,0.76283407,121730.0,121710.0,0.93250293]
[1760019811301,0.4429228,121720.0,121710.0,0.54519691]
[1760019811497,0.4429228,121720.0,121710.0,0.81207]
[1760019811699,0.0821295,121710.0,121700.0,0.02155]
[1760019811901,0.0821295,121710.0,121700.0,0.81275]
[1760019811902,0.4429295,121710.0,121700.0,0.81275]
[1760019812100,0.4429295,121710.0,121700.0,0.87937768]
[1760019812303,0.0821295,121710.0,121700.0,0.08825768]
[1760019812506,0.0821295,121710.0,121700.0,0.87925768]
[1760019812704,0.4429295,121710.0,121700.0,0.87933768]
[1760019813206,0.4429295,121710.0,121700.0,0.87917768]
[1760019813404,0.4429295,121710.0,121700.0,0.02155]
[1760019813603,0.4429295,121710.0,121700.0,0.81215]
[1760019813802,0.4429295,121710.0,121700.0,0.02155]
[1760019814000,0.4429295,121710.0,121700.0,0.42155]
[1760019814200,0.4429295,121710.0,121700.0,1.21203]
[1760019814799,0.4429295,121710.0,121700.0,0.42155]
[1760019815104,0.4429295,121710.0,121700.0,1.27567567]
[1760019815299,0.4429295,121710.0,121700.0,0.48567567]
[1760019815512,0.4429295,121710.0,121700.0,1.30861567]
[1760019815710,0.4429295,121710.0,121700.0,0.51877567]
[1760019815901,0.88055348,121710.0,121700.0,0.78972]
[1760019816105,0.88055348,121710.0,121680.0,0.02973645]
[1760019816306,0.39647,121700.0,121690.0,0.82282]
[1760019816510,0.77831265,121700.0,121690.0,0.82278]
[1760019816710,0.77831265,121700.0,121690.0,0.81278]
[1760019816904,0.39656867,121700.0,121690.0,0.81278]
[1760019817100,0.36089867,121700.0,121690.0,0.83421]
[1760019817404,9.867e-05,121700.0,121690.0,1.59517]
[1760019817709,9.867e-05,121700.0,121690.0,1.677753]
[1760019817905,9.867e-05,121700.0,121690.0,1.316953]
[1760019818211,0.39656867,121700.0,121690.0,0.04465]
[1760019818407,9.867e-05,121700.0,121690.0,1.26933698]
[1760019818607,0.3608,121740.0,121720.0,0.1367728]
[1760019818814,0.3608,121740.0,121730.0,0.84497]
[1760019819407,0.3608,121740.0,121730.0,0.05465]
[1760019819604,0.3608,121740.0,121730.0,0.60393]
[1760019819809,0.3608,121740.0,121730.0,0.84473]
[1760019820607,0.4429093,121740.0,121730.0,0.84473]
[1760019820808,0.4429093,121740.0,121730.0,0.926726]
[1760019821008,0.4429093,121740.0,121730.0,0.5215187]
[1760019821205,0.0821056,121750.0,121740.0,0.1033693]
[1760019821406,0.0820958,121760.0,121750.0,0.1380225]
[1760019821610,0.4428958,121760.0,121750.0,0.84536]
[1760019821809,0.0820958,121760.0,121750.0,0.84536]
[1760019822013,0.0820958,121760.0,121750.0,0.84532]
[1760019822415,0.0820958,121760.0,121730.0,0.4492187]
[1760019822416,1.27880978,121760.0,121730.0,0.0884187]
[1760019822716,0.85716978,121760.0,121750.0,0.03466]
[1760019823013,0.85716978,121760.0,121750.0,0.8239]
[1760019823315,0.4754258,121760.0,121750.0,0.8239]
[1760019823613,0.4754258,121760.0,121750.0,0.82366]
[1760019823914,0.4754258,121760.0,121750.0,0.03466]
[1760019824112,0.4754258,121760.0,121750.0,0.82358]
[1760019824308,0.4764258,121760.0,121750.0,0.82358]
[1760019824518,0.1164325,121750.0,121740.0,0.0337]
[1760019824708,0.4772325,121750.0,121740.0,0.84327]
[1760019825210,0.4772325,121750.0,121740.0,0.05459]
[1760019825412,0.4772325,121750.0,121740.0,0.0337]
[1760019825413,0.85897648,121750.0,121740.0,0.0337]
[1760019825612,0.87985648,121750.0,121730.0,0.0884187]
[1760019825812,0.77687398,121740.0,121730.0,0.0337]
[1760019826121,0.0821295,121710.0,121700.0,0.05459]
[1760019826317,0.0821295,121710.0,121700.0,0.1367263]
[1760019826512,0.3608,121730.0,121710.0,0.1367195]
[1760019826807,0.3608,121740.0,121730.0,0.136706]
[1760019827007,0.0821051,121750.0,121740.0,0.1366993]
[1760019827214,0.0820958,121760.0,121750.0,0.1366925]
[1760019828016,0.4428927,121770.0,121760.0,0.1366858]
[1760019828213,0.3608,121770.0,121760.0,0.20383996]
[1760019828519,0.3608,121790.0,121780.0,0.1366723]
[1760019828723,0.4428692,121800.0,121790.0,0.1366656]
[1760019829020,0.4771992,121800.0,121790.0,0.05459]
[1760019829214,0.4771992,121800.0,121790.0,0.82274]
[1760019829809,0.4771992,121800.0,121790.0,0.0337]
[1760019830414,0.4771992,121800.0,121790.0,0.82242]
[1760019830621,0.4771992,121800.0,121790.0,0.84331]
[1760019830821,0.4428692,121800.0,121790.0,0.84295]
[1760019831014,0.4428692,121800.0,121790.0,0.9250256]
[1760019832119,0.4438692,121800.0,121790.0,0.9250256]
[1760019832514,0.3618,121800.0,121790.0,0.9250256]
[1760019832708,0.3618,121800.0,121790.0,1.66619793]
[1760019832920,0.001,121800.0,121790.0,2.02699793]
[1760019833119,0.4428583,121820.0,121800.0,0.082064]
[1760019833323,0.4428583,121820.0,121810.0,0.84211]
[1760019833620,0.4428583,121820.0,121790.0,0.78748]
[1760019833621,0.05521,121800.0,121790.0,0.78748]
[1760019833828,1.11866233,121800.0,121790.0,0.7896]
[1760019834014,0.0820796,121790.0,121780.0,0.05459]
[1760019834214,0.4428796,121790.0,121780.0,0.05459]
[1760019834418,0.3608,121790.0,121780.0,0.84407]
[1760019835021,0.4428756,121790.0,121780.0,0.84407]
[1760019835222,0.3618,121800.0,121790.0,0.05459]
[1760019835421,0.3618,121800.0,121790.0,0.1366656]
[1760019835622,0.001,121800.0,121790.0,0.9256656]
[1760019835920,0.3608,121810.0,121800.0,0.1366588]
[1760019836320,0.3608,121810.0,121800.0,0.9255388]
[1760019836621,0.3608,121810.0,121800.0,0.9254588]
[1760019837223,0.3608,121810.0,121800.0,0.1366588]
[1760019837525,0.83992443,121810.0,121800.0,0.78828]
[1760019838323,0.81904443,121810.0,121800.0,0.82198]
[1760019838516,0.1163988,121800.0,121790.0,0.1157749]
[1760019838721,0.4771988,121800.0,121790.0,0.82226]
[1760019838916,0.3608,121800.0,121790.0,0.9252256]
[1760019839324,0.4428675,121810.0,121800.0,0.05459]
[1760019839625,0.4428675,121810.0,121800.0,0.1366588]
[1760019840025,0.4428675,121810.0,121800.0,0.9249388]
[1760019840425,0.4428675,121810.0,121800.0,0.1366588]
[1760019840622,0.4428675,121810.0,121800.0,0.9249388]
[1760019840824,0.3608,121810.0,121800.0,0.9249388]
[1760019841020,0.02088,121800.0,121790.0,0.3608]
[1760019841220,0.1029758,121760.0,121750.0,0.00010625]
[1760019841430,0.1029758,121760.0,121750.0,0.44718625]
[1760019841729,0.8245758,121760.0,121750.0,0.80922625]
[1760019841922,0.8036958,121760.0,121750.0,0.83035625]
[1760019842225,0.8036958,121760.0,121750.0,0.83019625]
[1760019842624,0.8036958,121760.0,121750.0,0.83119625]
[1760019843331,0.8036958,121760.0,121750.0,2.85994625]
[1760019843827,0.8036958,121760.0,121750.0,0.00110625]
[1760019844032,0.8245758,121760.0,121750.0,2.53786625]
[1760019844235,0.8245758,121760.0,121750.0,2.85842625]
[1760019844826,0.8245758,121760.0,121720.0,0.36274233]
[1760019844827,0.02088,121720.0,121670.0,0.02089]
[1760019845028,0.3608,121680.0,121660.0,0.0859701]
[1760019845228,0.0821466,121690.0,121680.0,0.81876]
[1760019845439,0.4429466,121690.0,121670.0,0.02089]
[1760019845625,0.3608,121680.0,121670.0,0.1030465]
[1760019845825,0.36087932,121680.0,121670.0,3.71341883]
[1760019846026,0.4429392,121700.0,121670.0,2.89489883]
[1760019846226,0.3608,121690.0,121680.0,1.18082233]
[1760019846435,0.3608,121700.0,121690.0,0.02089]
[1760019847137,0.3608,121700.0,121690.0,2.971353]
[1760019847138,0.36084316,121700.0,121690.0,2.971353]
[1760019847336,4.316e-05,121700.0,121690.0,2.553193]
[1760019847637,4.316e-05,121700.0,121690.0,3.370993]
[1760019848031,4.316e-05,121700.0,121690.0,2.553193]
[1760019848232,4.316e-05,121700.0,121690.0,3.370793]
[1760019848542,0.0821296,121710.0,121700.0,0.1030223]
[1760019849343,0.0821296,121710.0,121700.0,0.02089]
[1760019849545,0.0821296,121710.0,121700.0,2.1533863]
[1760019849739,0.35889618,121720.0,121700.0,2.9702263]
[1760019849934,0.0821111,121740.0,121720.0,0.0821228]
[1760019850139,0.3608,121740.0,121730.0,0.02136]
[1760019850340,0.3608,121740.0,121730.0,0.8378]
[1760019850636,0.3608,121740.0,121730.0,0.83784]
[1760019851040,0.3608,121740.0,121680.0,0.0821494]
[1760019851041,0.02114,121700.0,121660.0,0.02136]
[1760019851339,0.3608,121690.0,121670.0,0.4323508]
[1760019851536,0.3608,121690.0,121680.0,0.02136]
[1760019851739,0.3608,121690.0,121680.0,0.85336]
[1760019851943,0.3608,121690.0,121680.0,0.02136]
[1760019852142,0.3608,121690.0,121680.0,2.05052]
[1760019852543,0.3608,121690.0,121680.0,2.8822]
[1760019852943,0.3608,121690.0,121680.0,2.88224]
[1760019853645,0.3608,121690.0,121680.0,2.1327098]
[1760019853941,0.3608,121690.0,121680.0,0.1035098]
[1760019854138,0.3608,121690.0,121680.0,2.90368]
[1760019854334,0.3608,121690.0,121650.0,1.98614936]
[1760019854335,0.02114,121660.0,121650.0,0.01684202]
[1760019854539,0.02114,121630.0,121620.0,0.00010601]
[1760019854752,0.72379233,121630.0,121620.0,0.84842601]
[1760019855044,1.12379233,121630.0,121620.0,0.00010601]
[1760019855445,1.12379233,121630.0,121620.0,0.84790601]
[1760019855642,1.12379233,121630.0,121620.0,0.00010601]
[1760019855842,1.12379233,121630.0,121620.0,0.84770601]
[1760019856345,1.20597593,121630.0,121620.0,0.00010601]
[1760019856540,1.20597593,121630.0,121620.0,0.84710601]
[1760019856743,1.20597593,121630.0,121620.0,0.84698601]
[1760019856945,1.20597593,121630.0,121620.0,0.00010601]
[1760019857142,1.2722553,121630.0,121580.0,2.05108]
[1760019857452,1.2722553,121630.0,121580.0,2.1332917]
[1760019857453,0.3608,121600.0,121580.0,2.1332917]
[1760019857644,0.3608,121600.0,121590.0,0.9303306]
[1760019857845,0.3608,121600.0,121590.0,0.0822106]
[1760019858047,0.3608,121600.0,121580.0,0.0822169]
[1760019858347,0.36088451,121600.0,121590.0,2.89888]
[1760019858548,0.36088451,121600.0,121590.0,2.89884]
[1760019859144,0.70273684,121600.0,121570.0,0.00784202]
[1760019859346,0.3608,121590.0,121580.0,0.6392574]
[1760019859544,0.3608,121590.0,121580.0,0.0822174]
[1760019860147,8.451e-05,121600.0,121590.0,0.0822106]
[1760019860455,8.451e-05,121600.0,121590.0,0.9297306]
[1760019860746,8.451e-05,121600.0,121590.0,1.3297706]
[1760019861750,8.451e-05,121600.0,121590.0,0.4822106]
[1760019862055,8.451e-05,121600.0,121590.0,1.3290906]
[1760019862747,8.451e-05,121600.0,121590.0,0.0822106]
[1760019862954,8.451e-05,121600.0,121590.0,2.1340506]
[1760019863152,8.451e-05,121600.0,121590.0,2.9796506]
[1760019863543,8.451e-05,121600.0,121590.0,3.0006106]
[1760019863748,8.451e-05,121600.0,121590.0,3.4006106]
[1760019864152,8.451e-05,121600.0,121590.0,3.7614106]
[1760019865054,0.3608,121630.0,121620.0,0.02136]
[1760019865253,0.3608,121630.0,121620.0,0.86536]
[1760019865254,0.4429835,121630.0,121620.0,0.86536]
[1760019865450,0.4429835,121630.0,121610.0,0.02136]
[1760019865756,0.3608,121630.0,121600.0,0.1035603]
[1760019866064,0.3608,121620.0,121610.0,2.80708]
[1760019866250,0.3608,121620.0,121610.0,2.1556371]
[1760019866445,0.4429836,121630.0,121610.0,3.3597971]
[1760019866650,0.0821836,121630.0,121610.0,3.3597971]
[1760019866859,0.4429733,121650.0,121630.0,0.1035435]
[1760019867155,0.4429733,121650.0,121640.0,0.8434]
[1760019867456,0.44297,121650.0,121640.0,0.8434]
[1760019867957,0.3608,121650.0,121640.0,0.8434]
[1760019868151,0.44297,121650.0,121640.0,0.86404]
[1760019868346,0.44297,121650.0,121640.0,0.02136]
[1760019868550,0.44397,121650.0,121640.0,0.8638]
[1760019868751,0.3618,121650.0,121640.0,0.9459768]
[1760019869052,0.3618,121650.0,121640.0,0.1035368]
[1760019869053,0.001,121650.0,121640.0,0.1035368]
[1760019869257,0.001,121650.0,121640.0,0.9450968]
[1760019869858,0.001,121650.0,121640.0,0.92892806]
[1760019870054,0.001,121650.0,121640.0,1.77012806]
[1760019871151,0.3608,121670.0,121660.0,0.1035233]
[1760019871345,0.3608,121670.0,121660.0,0.9440033]
[1760019871747,0.3608,121680.0,121660.0,2.91336]
[1760019872054,0.3608,121680.0,121670.0,0.02136]
[1760019872456,0.3608,121680.0,121670.0,0.8608]
[1760019872658,0.3608,121680.0,121670.0,0.1035121]
[1760019873360,0.3608,121680.0,121670.0,0.9421521]
[1760019873652,0.3608,121700.0,121690.0,0.082143]
[1760019873855,0.3608,121700.0,121690.0,0.941823]
[1760019874051,0.3608,121710.0,121700.0,0.0821362]
[1760019874254,0.3608,121710.0,121700.0,0.9415362]
[1760019875254,0.3618,121710.0,121700.0,0.9415362]
[1760019875853,0.001,121710.0,121700.0,0.1034962]
[1760019876060,0.3618,121710.0,121700.0,0.5034962]
[1760019876358,0.001,121710.0,121700.0,0.5034962]
[1760019876559,0.001,121710.0,121700.0,1.3402162]
[1760019877060,0.001,121710.0,121700.0,1.20614853]
[1760019877361,0.3608,121730.0,121720.0,0.1034828]
[1760019877655,0.3608,121730.0,121720.0,2.1552428]
[1760019877863,0.3608,121730.0,121720.0,2.9910028]
[1760019878159,0.3608,121730.0,121720.0,2.1552028]
[1760019878360,0.3608,121730.0,121720.0,2.9907628]
[1760019878553,0.3608,121750.0,121720.0,2.9907628]
[1760019878554,0.3608,121750.0,121740.0,0.0821093]
[1760019878856,0.3608,121750.0,121740.0,0.9389893]
[1760019879061,0.3608,121750.0,121740.0,0.94347544]
[1760019879361,0.3608,121750.0,121740.0,1.3386693]
[1760019879753,0.3608,121750.0,121740.0,0.5034693]
[1760019879950,0.3608,121760.0,121750.0,0.1021625]
[1760019880151,0.3608,121760.0,121750.0,0.9366825]
[1760019880463,0.3608,121760.0,121750.0,2.9880825]
[1760019880962,0.3608,121760.0,121750.0,3.72993483]
[1760019881162,0.3608,121760.0,121750.0,2.13597858]
[1760019881457,0.3618,121760.0,121750.0,2.94951858]
[1760019881961,0.3618,121760.0,121750.0,0.06459858]
[1760019882161,0.3618,121760.0,121740.0,2.1546671]
[1760019882358,0.3618,121760.0,121750.0,0.0821025]
[1760019882560,0.3618,121760.0,121750.0,0.1021625]
[1760019882757,0.3618,121760.0,121750.0,0.9350825]
[1760019882955,0.3618,121760.0,121750.0,2.9860425]
[1760019883157,0.3618,121760.0,121750.0,0.02006]
[1760019883360,0.3618,121760.0,121750.0,2.9856425]
[1760019884666,0.3618,121760.0,121750.0,3.05244111]
[1760019885063,0.001,121760.0,121750.0,3.05244111]
[1760019886160,0.3608,121780.0,121770.0,0.1024491]
[1760019886361,0.3608,121780.0,121770.0,0.88386]
[1760019886560,1.13559233,121780.0,121770.0,0.86346]
[1760019886766,1.15633233,121780.0,121770.0,0.83012]
[1760019887359,0.03294,121760.0,121750.0,2.21984091]
[1760019887564,0.39374,121760.0,121750.0,2.21984091]
[1760019887761,0.3608,121760.0,121750.0,2.21984091]
[1760019887963,0.3608,121760.0,121750.0,3.04944091]
[1760019888463,0.39474,121780.0,121770.0,0.03334]
[1760019888663,0.75554,121780.0,121770.0,0.86234]
[1760019888866,0.77628,121780.0,121750.0,0.16895801]
[1760019889065,0.3608,121760.0,121750.0,2.25301801]
[1760019889260,0.3608,121760.0,121750.0,3.08173801]
[1760019889466,0.3618,121760.0,121750.0,3.08173801]
[1760019890170,0.001,121760.0,121750.0,3.08173801]
[1760019890369,0.001,121760.0,121750.0,2.63542504]
[1760019890669,0.3618,121760.0,121750.0,3.46330504]
[1760019891470,0.001,121760.0,121750.0,3.46330504]
[1760019891858,0.3618,121760.0,121750.0,3.46330504]
[1760019892172,0.001,121760.0,121750.0,3.46246504]
[1760019892467,0.001,121760.0,121750.0,2.63542504]
[1760019892868,0.001,121760.0,121750.0,3.46178504]
[1760019893064,0.001,121760.0,121750.0,3.82258504]
[1760019893264,0.001,121760.0,121750.0,3.46178504]
[1760019893464,0.001,121760.0,121750.0,2.63542504]
[1760019893665,0.001,121760.0,121750.0,3.46174504]
[1760019893863,0.001,121760.0,121750.0,2.63542504]
[1760019894065,0.3618,121760.0,121750.0,2.25301801]
[1760019894274,0.3618,121760.0,121750.0,3.07861801]
[1760019894667,0.3618,121760.0,121750.0,2.25301801]
[1760019894867,0.3618,121760.0,121750.0,3.07817801]
[1760019895265,0.3618,121760.0,121750.0,2.25301801]
[1760019895472,0.3618,121760.0,121750.0,3.46018504]
[1760019896268,0.3618,121760.0,121750.0,3.45962504]
[1760019896462,0.3618,121760.0,121750.0,2.25265801]
[1760019897174,0.001,121760.0,121750.0,3.82062504]
[1760019897364,0.001,121760.0,121750.0,2.63506504]
[1760019897566,0.001,121760.0,121750.0,3.45950504]
[1760019897872,0.001,121760.0,121750.0,2.63506504]
[1760019898069,0.3608,121770.0,121760.0,0.0820958]
[1760019898274,0.3608,121780.0,121770.0,0.135789]